bitfinex/quotes_SOLUSD_20240808
["timestamp","ask_amount","ask_price","bid_price","bid_amount"]
[1723110841915,260.7,155.42,155.31,0.17]
[1723110842091,260.7,155.42,155.31,65.34]
[1723110843789,0.92756912,155.41,155.31,65.34]
[1723110844105,260.7,155.42,155.31,65.34]
[1723110844314,0.92756912,155.41,155.31,65.34]
[1723110844703,27.36246912,155.41,155.31,20.17]
[1723110845014,20.92756912,155.41,155.31,20.17]
[1723110845602,20.0,155.41,155.31,20.17]
[1723110846223,260.7,155.42,155.32,45.17]
[1723110846524,383.2,155.43,155.33,20.17]
[1723110846710,22.3041,155.46,155.34,45.17]
[1723110846897,23.23166912,155.46,155.35,20.17]
[1723110847093,6.72080487,155.47,155.36,45.0]
[1723110847320,419.09,155.49,155.37,6.1863]
[1723110847321,383.2,155.49,155.37,6.1863]
[1723110847511,383.2,155.49,155.38,65.0]
[1723110847700,389.6316,155.49,155.38,65.0]
[1723110847894,6.4321,155.47,155.38,65.0]
[1723110848100,6.72068638,155.48,155.38,65.0]
[1723110848308,14.0800555,155.48,155.38,65.0]
[1723110848596,7.35936912,155.48,155.38,45.0]
[1723110848804,20.0,155.47,155.38,45.0]
[1723110849218,20.0,155.48,155.38,45.0]
[1723110849514,6.4329,155.46,155.38,45.0]
[1723110849713,20.92756912,155.45,155.38,45.0]
[1723110850416,0.92756912,155.45,155.38,45.0]
[1723110850807,20.0,155.46,155.38,45.0]
[1723110850999,20.17,155.47,155.38,45.0]
[1723110851205,20.0,155.47,155.38,45.0]
[1723110851610,20.0,155.48,155.38,45.0]
[1723110851802,20.0,155.48,155.39,0.17]
[1723110852516,26.4312,155.49,155.39,0.17]
[1723110852730,26.4312,155.49,155.39,20.17]
[1723110852903,0.92756912,155.48,155.4,45.0]
[1723110853104,20.0,155.49,155.4,45.0]
[1723110853295,0.92756912,155.48,155.4,45.0]
[1723110853522,20.92756912,155.49,155.4,45.0]
[1723110853707,20.0,155.49,155.4,45.0]
[1723110854107,40.0,155.5,155.42,6.147]
[1723110854421,40.0,155.5,155.43,45.0]
[1723110856129,6.4321,155.47,155.42,6.147]
[1723110856310,0.92756912,155.47,155.42,6.147]
[1723110856538,6.6017,155.48,155.42,6.147]
[1723110856710,20.0,155.47,155.42,6.147]
[1723110857103,0.92756912,155.46,155.42,6.147]
[1723110857922,20.0,155.47,155.36,6.216]
[1723110858094,0.92756912,155.47,155.37,45.0]
[1723110858898,403.2,155.49,155.38,0.34]
[1723110859212,403.2,155.49,155.38,20.34]
[1723110859400,1.09756912,155.48,155.39,45.0]
[1723110860199,7.52936912,155.48,155.39,45.0]
[1723110860564,20.0,155.47,155.39,45.0]
[1723110860739,6.4333,155.45,155.39,45.0]
[1723110861025,0.92756912,155.44,155.39,45.0]
[1723110861211,20.92756912,155.44,155.39,45.0]
[1723110862254,0.92756912,155.44,155.36,6.216]
[1723110862429,20.0,155.45,155.36,6.216]
[1723110862637,27.36056912,155.45,155.36,6.216]
[1723110862860,20.92756912,155.45,155.36,6.216]
[1723110863056,20.0,155.45,155.36,6.216]
[1723110863382,6.4343,155.42,155.36,6.216]
[1723110863685,6.4361,155.38,155.33,6.6447]
[1723110863888,21.26756912,155.41,155.33,6.6447]
[1723110863889,0.92756912,155.37,155.33,6.6447]
[1723110864175,0.92756912,155.4,155.33,6.6447]
[1723110864401,7.36336912,155.39,155.33,6.6447]
[1723110864527,0.17,155.38,155.27,14.818]
[1723110864732,0.34,155.38,155.28,6.5573]
[1723110865364,0.17,155.38,155.28,6.5573]
[1723110865560,0.92756912,155.37,155.28,6.5573]
[1723110865770,0.17,155.36,155.28,6.5573]
[1723110866044,6.4378,155.34,155.28,6.5573]
[1723110866255,20.0,155.33,155.28,6.5573]
[1723110866459,0.92756912,155.32,155.28,6.5573]
[1723110866661,27.36546912,155.33,155.28,6.5573]
[1723110866848,0.34,155.32,155.24,6.4587]
[1723110867058,0.92756912,155.31,155.24,6.4587]
[1723110867257,389.9783,155.32,155.24,6.4587]
[1723110867461,20.0,155.31,155.24,6.4587]
[1723110867663,20.0,155.31,155.19,6.6657]
[1723110867850,20.92756912,155.31,155.19,6.6657]
[1723110868171,0.17,155.3,155.19,6.6657]
[1723110868582,0.92756912,155.29,155.19,6.6657]
[1723110868791,6.4411,155.26,155.19,6.6657]
[1723110868943,20.92756912,155.25,155.19,6.6657]
[1723110869166,20.92756912,155.25,155.15,6.1997]
[1723110869638,0.92756912,155.25,155.15,6.1997]
[1723110870157,21.09756912,155.26,155.15,6.1997]
[1723110870361,0.92756912,155.24,155.16,20.0]
[1723110871347,1.26756912,155.25,155.16,20.0]
[1723110871552,7.70886912,155.25,155.15,6.1997]
[1723110871765,20.0,155.24,155.15,6.1997]
[1723110872374,21.26756912,155.25,155.15,6.1997]
[1723110872558,21.26756912,155.25,155.16,45.0]
[1723110875144,20.17,155.25,155.16,45.0]
[1723110875344,20.0,155.25,155.16,45.0]
[1723110875864,383.2,155.26,155.17,0.17]
[1723110876045,395.8964,155.31,155.17,20.34]
[1723110876254,16.14866912,155.29,155.18,45.0]
[1723110876456,22.58816912,155.29,155.19,20.0]
[1723110876661,22.58816912,155.29,155.2,45.0]
[1723110876845,6.4401,155.28,155.2,45.0]
[1723110877047,0.92756912,155.27,155.2,45.0]
[1723110877249,6.4404,155.27,155.19,20.0]
[1723110877462,15.2211,155.29,155.16,20.0]
[1723110877763,6.4403,155.27,155.16,20.0]
[1723110877989,1.09756912,155.26,155.16,20.0]
[1723110878273,7.53856912,155.26,155.16,20.0]
[1723110878475,20.0,155.25,155.16,20.0]
[1723110878663,1.09756912,155.24,155.15,6.1997]
[1723110878853,21.808,155.22,155.12,95.33452608]
[1723110879052,21.808,155.22,155.09,6.3866]
[1723110879053,27.54046912,155.21,155.09,6.3866]
[1723110879264,7.54086912,155.2,155.09,6.3866]
[1723110879470,20.17,155.19,155.09,6.3866]
[1723110879660,0.92756912,155.18,155.09,6.3866]
[1723110879877,0.92756912,155.17,155.09,6.3866]
[1723110880071,20.17,155.19,155.09,6.3866]
[1723110880261,20.0,155.18,155.1,45.0]
[1723110880459,0.17,155.19,155.1,45.0]
[1723110880859,20.0,155.21,155.1,45.0]
[1723110881159,15.771,155.22,155.11,0.34]
[1723110881362,28.3415,155.26,155.11,0.34]
[1723110881695,15.618,155.26,155.11,36.23]
[1723110881874,15.618,155.26,155.13,14.818]
[1723110882076,15.618,155.26,155.14,20.34]
[1723110882398,22.98636912,155.26,155.15,45.0]
[1723110882589,6.4416,155.24,155.13,14.818]
[1723110882882,6.4416,155.24,155.14,20.0]
[1723110883052,0.92756912,155.24,155.14,20.0]
[1723110883247,0.17,155.25,155.14,20.0]
[1723110883779,1.09756912,155.25,155.14,20.0]
[1723110883971,0.34,155.25,155.15,45.0]
[1723110884176,20.34,155.25,155.15,45.0]
[1723110884356,1.09756912,155.24,155.15,45.0]
[1723110884554,0.17,155.23,155.15,45.0]
[1723110884770,1.09756912,155.23,155.15,45.0]
[1723110884987,0.17,155.22,155.15,45.0]
[1723110885483,6.6127,155.22,155.09,116.55756722]
[1723110885663,20.0,155.21,155.1,65.0]
[1723110886586,1.26756912,155.2,155.1,20.0]
[1723110886885,20.0,155.21,155.1,20.0]
[1723110886886,0.92756912,155.19,155.1,20.0]
[1723110887051,20.92756912,155.22,155.1,20.0]
[1723110887567,0.92756912,155.22,155.1,20.0]
[1723110887875,0.92756912,155.22,155.11,45.17]
[1723110888056,7.37006912,155.22,155.12,20.0]
[1723110888264,20.17,155.21,155.13,45.0]
[1723110888459,29.39336912,155.2,155.06,6.3761]
[1723110888683,20.34,155.19,155.06,6.3761]
[1723110888971,20.17,155.19,155.06,6.3761]
[1723110889365,0.92756912,155.18,155.06,6.3761]
[1723110889868,0.34,155.17,155.06,6.3761]
[1723110890173,27.71206912,155.17,155.06,6.3761]
[1723110890379,21.26756912,155.17,155.06,6.3761]
[1723110891572,20.0,155.18,155.06,6.3761]
[1723110891757,20.0,155.19,155.06,6.3761]
[1723110892165,20.0,155.19,155.07,20.0]
[1723110892360,20.0,155.19,155.08,45.34]
[1723110892959,6.4453,155.16,155.03,95.3898709]
[1723110893161,35.89,155.17,154.99,7.26204859]
[1723110893162,20.92756912,155.15,154.99,7.26204859]
[1723110893564,0.17,155.14,154.99,7.26204859]
[1723110894154,443.1926,155.13,154.99,1.16484859]
[1723110894475,6.4481,155.09,154.98,0.8466586]
[1723110894772,27.54586912,155.08,154.98,0.8466586]
[1723110895154,22.0561,155.07,154.98,0.8466586]
[1723110895361,21.26756912,155.06,154.98,0.8466586]
[1723110895964,6.4503,155.04,154.98,0.8466586]
[1723110896164,27.54806912,155.03,154.98,0.8466586]
[1723110896359,20.92756912,155.03,154.98,0.8466586]
[1723110896587,20.0,155.03,154.98,0.8466586]
[1723110897078,20.0,155.03,155.01,6.4511]
[1723110897376,0.92756912,155.02,154.99,6.4516]
[1723110897556,6.6199,155.04,154.99,6.4516]
[1723110897756,20.0,155.03,154.98,7.2990586]
[1723110897959,0.17,155.02,154.98,0.8466586]
[1723110898161,0.34,155.02,154.98,0.8466586]
[1723110898365,20.34,155.02,154.98,0.8466586]
[1723110898656,383.2,155.06,154.98,0.8466586]
[1723110898864,383.2,155.06,155.01,6.4511]
[1723110899057,383.2,155.06,155.02,6.4506]
[1723110899667,383.2,155.06,154.98,0.8466586]
[1723110899887,0.92756912,155.05,154.98,0.8466586]
[1723110900264,20.92756912,155.05,154.98,0.8466586]
[1723110900481,20.0,155.05,154.98,0.8466586]
[1723110901561,383.2,155.06,154.98,0.8466586]
[1723110901873,6.4237,155.12,155.0,6.2674]
[1723110902301,16.6222,155.13,155.01,46.6297117]
[1723110902454,16.6222,155.13,155.01,66.6297117]
[1723110902627,16.6222,155.13,155.01,65.34]
[1723110903469,0.92756912,155.12,155.01,65.34]
[1723110904073,20.0,155.12,155.01,65.34]
[1723110904474,0.92756912,155.11,155.01,65.34]
[1723110904802,6.3926,155.17,155.02,1.12543739]
[1723110904980,6.3926,155.17,155.03,0.34]
[1723110905404,7.32016912,155.17,155.03,0.34]
[1723110905606,7.32016912,155.17,155.02,0.34]
[1723110905778,383.2,155.16,155.02,0.34]
[1723110905975,20.0,155.15,155.02,0.34]
[1723110906288,383.2,155.16,155.02,0.34]
[1723110906627,383.2,155.16,155.03,35.89]
[1723110906777,383.2,155.16,155.04,65.34]
[1723110907156,15.6996,155.18,155.05,1.27787472]
[1723110907378,22.5386,155.23,155.07,14.818]
[1723110907581,17.02406912,155.23,155.08,65.17]
[1723110907792,23.46626912,155.23,155.09,0.17]
[1723110908084,6.4425,155.22,155.09,0.17]
[1723110908473,16.0965,155.23,155.09,0.17]
[1723110908868,17.02406912,155.23,155.08,45.17]
[1723110909061,35.89,155.21,155.06,6.022]
[1723110909265,0.92756912,155.2,155.07,0.17]
[1723110909570,0.92756912,155.2,155.07,0.34]
[1723110909872,20.92756912,155.2,155.06,6.022]
[1723110910084,6.4441,155.18,155.06,6.022]
[1723110910280,0.92756912,155.22,155.07,35.89]
[1723110910488,6.72316664,155.25,155.1,35.89]
[1723110910690,0.92756912,155.27,155.11,65.17]
[1723110910881,0.92756912,155.26,155.11,65.17]
[1723110911064,6.4417,155.24,155.12,0.17]
[1723110911268,36.15590691,155.28,155.13,6.3175]
[1723110911476,16.446,155.28,155.14,66.62862733]
[1723110911693,0.92756912,155.27,155.14,65.34]
[1723110912000,7.36796912,155.27,155.14,65.34]
[1723110912203,6.4404,155.27,155.14,65.34]
[1723110912372,0.92756912,155.26,155.14,65.34]
[1723110912576,52.336,155.28,155.14,65.17]
[1723110912788,52.336,155.28,155.15,0.17]
[1723110913190,6.4419,155.24,155.13,6.3175]
[1723110913475,6.4404,155.27,155.13,6.3175]
[1723110913680,52.336,155.28,155.13,6.3175]
[1723110913681,58.776,155.28,155.13,6.3175]
[1723110914082,20.0,155.27,155.13,6.3175]
[1723110914291,20.0,155.27,155.14,45.0]
[1723110914475,20.0,155.27,155.15,0.17]
[1723110914702,7.64850061,155.29,155.15,21.45654918]
[1723110914703,6.72093149,155.29,155.15,21.45654918]
[1723110915001,643.9,155.32,155.16,45.17]
[1723110915189,6.4389,155.31,155.17,21.45638335]
[1723110915404,6.4387,155.31,155.18,46.45823732]
[1723110915574,6.4387,155.31,155.19,0.17]
[1723110915900,6.4393,155.3,155.19,0.17]
[1723110916897,26.4396,155.29,155.19,0.17]
[1723110917279,6.4399,155.28,155.18,45.17]
[1723110917493,6.4411,155.26,155.13,6.3175]
[1723110917770,20.0,155.25,155.13,6.3175]
[1723110918175,20.0,155.27,155.13,6.3175]
[1723110918370,20.0,155.27,155.13,7.60608679]
[1723110918798,20.0,155.28,155.13,7.60608679]
[1723110919086,13.15977234,155.31,155.14,0.17]
[1723110919311,13.15977234,155.31,155.15,1.28833674]
[1723110919312,6.72077234,155.31,155.15,1.28833674]
[1723110919496,15.2325,155.33,155.17,6.188]
[1723110919704,6.4386,155.32,155.18,66.62816313]
[1723110919876,6.4388,155.31,155.18,65.34]
[1723110920081,0.92756912,155.32,155.18,65.34]
[1723110920487,6.4388,155.31,155.18,65.34]
[1723110920693,6.4384,155.32,155.18,66.62822704]
[1723110920994,21.95201127,155.33,155.18,65.34]
[1723110921193,26.4384,155.32,155.18,65.34]
[1723110921695,20.0,155.32,155.18,65.34]
[1723110921897,26.4386,155.32,155.18,65.34]
[1723110922117,20.0,155.32,155.18,66.62802381]
[1723110922294,20.0,155.32,155.19,14.818]
[1723110922501,20.0,155.32,155.2,66.62800947]
[1723110922682,20.0,155.32,155.21,1.28792672]
[1723110922898,6.4363,155.37,155.22,6.8785]
[1723110923199,15.4308,155.38,155.23,66.28776103]
[1723110923375,6.4354,155.39,155.25,6.5385]
[1723110923580,398.6308,155.42,155.26,66.62736591]
[1723110923581,6.4353,155.4,155.26,66.62736591]
[1723110923800,6.4355,155.39,155.26,66.62736591]
[1723110924295,6.435,155.4,155.27,1.28728299]
[1723110924489,6.435,155.4,155.28,0.34]
[1723110925298,6.71641125,155.42,155.3,6.3518]
[1723110925519,6.434,155.43,155.31,46.62724765]
[1723110925682,6.4343,155.42,155.31,45.34]
[1723110926287,6.4346,155.41,155.31,45.34]
[1723110927074,7.64288908,155.45,155.31,45.34]
[1723110927288,6.434,155.43,155.31,45.34]
[1723110927488,6.71531996,155.45,155.32,1.28708009]
[1723110927686,6.4328,155.46,155.33,95.54563758]
[1723110927891,6.4328,155.46,155.34,46.28691437]
[1723110928127,6.4328,155.46,155.35,0.34]
[1723110928293,0.92756912,155.46,155.35,0.34]
[1723110928483,0.92756912,155.45,155.35,0.17]
[1723110928682,0.92756912,155.45,155.34,45.0]
[1723110928887,6.71357348,155.48,155.35,6.2004]
[1723110929087,6.433,155.45,155.36,65.0]
[1723110929294,6.433,155.45,155.37,0.34]
[1723110929895,6.433,155.45,155.37,0.17]
[1723110930228,20.0,155.44,155.36,45.0]
[1723110930501,6.4337,155.43,155.36,45.0]
[1723110930706,20.0,155.42,155.36,45.0]
[1723110931285,6.4341,155.42,155.36,45.0]
[1723110931490,20.0,155.41,155.36,45.0]
[1723110931808,6.434,155.43,155.36,45.0]
[1723110932005,20.0,155.42,155.36,45.0]
[1723110932804,20.0,155.43,155.36,45.0]
[1723110932980,21.6257,155.45,155.36,45.0]
[1723110932981,20.0,155.44,155.36,45.0]
[1723110933385,6.434,155.43,155.36,45.0]
[1723110933608,20.0,155.42,155.36,45.0]
[1723110933803,20.0,155.42,155.35,6.0304]
[1723110934021,6.4346,155.41,155.35,6.0304]
[1723110934218,26.4342,155.42,155.35,6.0304]
[1723110934404,6.4346,155.41,155.35,6.0304]
[1723110934909,26.4342,155.42,155.3,6.2499]
[1723110935208,26.4342,155.42,155.31,20.0]
[1723110935391,26.4342,155.42,155.32,0.17]
[1723110935800,6.4346,155.41,155.32,0.17]
[1723110936506,20.0,155.42,155.31,65.0]
[1723110936727,20.17,155.43,155.32,0.17]
[1723110937282,6.4342,155.42,155.32,0.17]
[1723110937506,20.0,155.41,155.31,45.0]
[1723110937813,20.0,155.41,155.3,6.2499]
[1723110937814,383.37,155.4,155.3,6.2499]
[1723110938030,35.89,155.37,155.26,101.27126168]
[1723110938212,37.50426912,155.36,155.21,14.818]
[1723110938396,0.17,155.35,155.22,6.0128]
[1723110938584,1.09756912,155.35,155.22,6.0128]
[1723110938793,0.17,155.34,155.22,6.0128]
[1723110939001,6.4387,155.31,155.22,6.0128]
[1723110939214,6.4384,155.32,155.22,6.0128]
[1723110939394,20.0,155.31,155.22,6.0128]
[1723110939914,55.89,155.31,155.22,6.0128]
[1723110940107,0.17,155.3,155.22,6.0128]
[1723110941008,6.6091,155.3,155.22,6.0128]
[1723110941189,20.0,155.29,155.22,6.0128]
[1723110941391,383.2,155.33,155.22,6.0128]
[1723110941628,20.0,155.32,155.23,1.19793175]
[1723110941793,20.0,155.32,155.24,1.21759772]
[1723110942457,20.0,155.32,155.23,45.17]
[1723110942921,20.0,155.32,155.23,45.0]
[1723110943294,35.89,155.31,155.22,6.0128]
[1723110943604,6.4396,155.29,155.22,6.0128]
[1723110944022,6.6092,155.3,155.22,6.0128]
[1723110944225,20.0,155.29,155.22,6.0128]
[1723110945040,36.81756912,155.28,155.17,6.571]
[1723110945246,20.17,155.27,155.17,6.571]
[1723110945580,6.4413,155.25,155.17,6.571]
[1723110946245,20.92756912,155.24,155.17,6.571]
[1723110946544,1.09756912,155.23,155.13,6.6406]
[1723110946724,6.4433,155.2,155.13,6.6406]
[1723110946909,0.17,155.22,155.13,6.6406]
[1723110946910,20.0,155.19,155.13,6.6406]
[1723110947104,6.6121,155.23,155.13,6.6406]
[1723110947330,6.4428,155.21,155.13,6.6406]
[1723110947528,20.0,155.2,155.13,6.6406]
[1723110948117,20.0,155.21,155.14,45.0]
[1723110948322,20.0,155.22,155.14,45.0]
[1723110948721,26.4425,155.22,155.14,45.0]
[1723110949128,26.4425,155.22,155.13,6.6406]
[1723110949339,0.17,155.21,155.13,6.6406]
[1723110949518,6.6129,155.21,155.13,6.6406]
[1723110949721,20.0,155.2,155.13,6.6406]
[1723110950317,0.17,155.19,155.13,6.6406]
[1723110950522,7.37166912,155.18,155.09,6.5818]
[1723110950736,20.92756912,155.17,155.09,6.5818]
[1723110951048,0.92756912,155.17,155.09,6.5818]
[1723110951243,0.17,155.19,155.09,6.5818]
[1723110951450,21.09756912,155.21,155.09,6.5818]
[1723110951451,6.7836,155.2,155.09,6.5818]
[1723110951749,26.4438,155.19,155.09,6.5818]
[1723110951960,0.34,155.18,155.09,6.5818]
[1723110952160,20.34,155.18,155.09,6.5818]
[1723110952538,20.34,155.18,155.1,45.0]
[1723110953059,0.92756912,155.17,155.1,45.0]
[1723110953419,6.445,155.16,155.1,45.0]
[1723110953628,0.92756912,155.15,155.09,6.5818]
[1723110953927,0.92756912,155.14,155.09,6.5818]
[1723110954227,20.0,155.15,155.03,6.1281]
[1723110954447,6.6158,155.14,155.03,6.1281]
[1723110954796,6.447,155.11,155.03,6.1281]
[1723110954937,0.92756912,155.1,155.03,6.1281]
[1723110955127,20.92756912,155.1,155.03,6.1281]
[1723110955342,26.4478,155.1,155.03,6.1281]
[1723110955555,0.17,155.09,155.03,6.1281]
[1723110955726,6.6179,155.09,155.03,6.1281]
[1723110955928,6.6179,155.09,154.99,6.1123]
[1723110956453,0.17,155.09,154.99,6.1123]
[1723110956829,20.34,155.09,154.99,6.1123]
[1723110957223,26.7882,155.09,154.99,6.1123]
[1723110957454,6.449,155.07,154.98,0.8466586]
[1723110957643,20.34,155.06,154.98,0.8466586]
[1723110958520,6.7895,155.06,154.98,0.8466586]
[1723110958720,20.0,155.05,154.98,0.8466586]
[1723110959745,0.17,155.06,154.98,0.8466586]
[1723110960534,20.0,155.07,154.98,0.8466586]
[1723110962263,26.4487,155.07,154.98,0.8466586]
[1723110962846,6.4492,155.06,154.98,0.8466586]
[1723110963171,20.0,155.07,154.98,0.8466586]
[1723110963980,26.449,155.07,154.98,0.8466586]
[1723110964653,20.0,155.07,154.98,0.8466586]
[1723110964870,6.4474,155.1,154.99,0.34]
[1723110965036,0.92756912,155.1,154.99,45.0]
[1723110965362,6.4482,155.08,154.99,45.0]
[1723110965668,6.4481,155.09,154.99,45.0]
[1723110966036,6.6186,155.08,154.99,45.0]
[1723110966228,6.4492,155.06,154.99,45.0]
[1723110966633,20.0,155.05,154.99,45.0]
[1723110967354,20.0,155.05,154.98,0.8466586]
[1723110968246,20.0,155.06,154.98,0.8466586]
[1723110968849,26.4491,155.06,154.98,0.8466586]
[1723110969030,6.4495,155.05,154.98,0.8466586]
[1723110969232,20.0,155.04,154.98,0.8466586]
[1723110969429,26.4492,155.06,154.98,0.8466586]
[1723110970050,20.0,155.06,154.98,0.8466586]
[1723110970349,383.2,155.09,154.99,0.17]
[1723110970659,383.2,155.09,154.98,0.8466586]
[1723110970949,6.4486,155.08,154.98,0.8466586]
[1723110971148,383.2,155.09,154.98,0.8466586]
[1723110971554,20.17,155.08,154.98,0.8466586]
[1723110971753,20.0,155.08,154.98,0.8466586]
[1723110971946,383.2,155.09,154.99,0.34]
[1723110972343,389.6478,155.09,154.99,0.34]
[1723110972544,389.6478,155.09,154.99,0.17]
[1723110973047,0.92756912,155.08,154.98,0.8466586]
[1723110973255,6.4488,155.07,154.98,0.8466586]
[1723110973750,20.0,155.06,154.98,0.8466586]
[1723110974347,20.92756912,155.07,154.98,0.8466586]
[1723110974556,0.17,155.06,154.98,0.8466586]
[1723110974733,6.7892,155.06,154.98,0.8466586]
[1723110974933,20.0,155.05,154.98,0.8466586]
[1723110975845,20.0,155.06,154.98,0.8466586]
[1723110976041,20.0,155.07,154.98,0.8466586]
[1723110976747,26.4483,155.08,154.98,0.8466586]
[1723110977152,20.92756912,155.08,154.98,0.8466586]
[1723110977457,1.26756912,155.07,154.98,0.8466586]
[1723110977957,6.4498,155.05,154.98,0.8466586]
[1723110978150,7.71666912,155.07,154.98,0.8466586]
[1723110978337,20.0,155.04,154.98,0.8466586]
[1723110978945,20.0,155.06,154.98,0.8466586]
[1723110979854,26.4482,155.08,154.98,0.8466586]
[1723110980266,20.0,155.08,154.99,1.2895041]
[1723110980460,2.59171077,155.11,155.0,14.818]
[1723110980772,16.2365,155.13,155.01,72.59593772]
[1723110980968,16.2365,155.13,155.02,1.45973161]
[1723110981136,16.2365,155.13,155.03,0.17]
[1723110981333,16.2365,155.13,155.02,0.17]
[1723110981565,6.4487,155.07,155.01,51.3066]
[1723110981861,6.4491,155.06,155.01,6.3066]
[1723110982058,6.4487,155.07,155.01,6.3066]
[1723110982462,6.4483,155.08,155.01,6.3066]
[1723110982642,6.4491,155.06,155.01,6.3066]
[1723110982858,0.92756912,155.05,154.98,0.8466586]
[1723110983160,20.0,155.05,154.98,0.8466586]
[1723110983470,20.0,155.05,154.99,1.2697012]
[1723110983654,6.4486,155.08,154.98,0.8466586]
[1723110983839,26.4488,155.07,154.98,0.8466586]
[1723110984045,6.4488,155.07,154.98,45.8466586]
[1723110984248,26.6193,155.06,154.98,0.8466586]
[1723110985073,20.17,155.06,154.98,0.8466586]
[1723110985348,26.6192,155.06,154.98,0.8466586]
[1723110985583,6.4506,155.03,154.98,0.8466586]
[1723110985768,20.0,155.02,154.98,0.8466586]
[1723110986891,6.45,155.04,154.98,0.8466586]
[1723110987054,20.17,155.03,154.98,0.8466586]
[1723110987439,20.0,155.03,154.98,0.8466586]
[1723110987665,0.17,155.05,154.98,0.8466586]
[1723110987853,261.875,155.0,154.98,0.8466586]
[1723110988182,261.875,155.0,154.99,6.452]
[1723110989360,261.875,155.0,154.99,51.452]
[1723110989552,261.875,155.0,154.99,6.452]
[1723110991865,261.875,155.0,154.98,0.8466586]
[1723110992765,261.875,155.0,154.99,6.452]
[1723110993746,261.875,155.0,154.98,7.2986586]
[1723110994167,261.875,155.0,154.98,0.8466586]
[1723110994849,261.875,155.0,154.98,7.2990586]
[1723110995262,261.875,155.0,154.98,0.8466586]
[1723110995458,0.92756912,154.99,154.98,0.8466586]
[1723110995668,261.875,155.0,154.98,0.8466586]
[1723110996392,261.875,155.0,154.99,6.452]
[1723110996673,281.875,155.0,154.98,7.2989586]
[1723110997067,281.875,155.0,154.98,0.8466586]
[1723110997369,281.875,155.0,154.99,6.452]
[1723110997568,261.875,155.0,154.99,6.452]
[1723110999286,261.875,155.0,154.98,0.8466586]
[1723111001287,261.875,155.0,154.99,0.17]
[1723111001474,261.875,155.0,154.98,0.8466586]
[1723111002890,261.875,155.0,154.99,0.17]
[1723111003260,261.875,155.0,154.98,0.8466586]
[1723111007059,28.02,154.99,154.98,0.8466586]
[1723111007466,261.875,155.0,154.98,0.8466586]
[1723111010873,268.3266,155.0,154.98,0.8466586]
[1723111011063,34.472,154.99,154.98,0.8466586]
[1723111011270,54.472,154.99,154.98,0.8466586]
[1723111012086,55.39956912,154.99,154.98,0.8466586]
[1723111012384,55.56956912,154.99,154.98,0.8466586]
[1723111013180,48.19,154.99,154.98,0.8466586]
[1723111013793,54.812,154.99,154.98,0.8466586]
[1723111014215,26.622,154.99,154.98,0.8466586]
[1723111014419,54.642,154.99,154.98,0.8466586]
[1723111014600,20.0,154.99,154.98,0.8466586]
[1723111019088,26.452,154.99,154.98,0.8466586]
[1723111019295,71.622,154.99,154.98,0.8466586]
[1723111019495,27.71956912,154.99,154.98,0.8466586]
[1723111019691,26.792,154.99,154.98,0.8466586]
[1723111019892,26.622,154.99,154.98,0.8466586]
[1723111020093,26.792,154.99,154.98,0.8466586]